[Event "November 21 Late 2023"]
[Site "https://www.chess.com"]
[Date "2023.11.21"]
[Round "5"]
[White "Carlsen, Magnus"]
[Black "Kovalev, Vladislav"]
[Result "1-0"]
[Board "6"]
[TimeControl "180+1"]
[WhiteFideId "1503014"]
[BlackFideId "13504398"]
[WhiteElo "2887"]
[BlackElo "2539"]
[WhiteTeam "NOR"]
[BlackTeam "FID"]
[WhiteClock "0:02:16"]
[BlackClock "0:00:42"]

1. g3 {[%clk 0:02:53]}  d5 {[%clk 0:03:00]} 2. Nf3 {[%clk 0:02:52]}  Nf6 {[%clk 0:02:59]} 3. Bg2 {[%clk 0:02:53]}  c6 {[%clk 0:02:58]} 4. O-O {[%clk 0:02:53]}  Bf5 {[%clk 0:02:58]} 5. c4 {[%clk 0:02:50]}  e6 {[%clk 0:02:55]} 6. Qb3 {[%clk 0:02:50]}  Qb6 {[%clk 0:02:55]} 7. Nc3 {[%clk 0:02:46]}  Be7 {[%clk 0:02:54]} 8. d3 {[%clk 0:02:46]}  Nbd7 {[%clk 0:02:53]} 9. Be3 {[%clk 0:02:46]}  Qxb3 {[%clk 0:02:52]} 10. axb3 {[%clk 0:02:45]}  O-O {[%clk 0:02:53]} 11. Bxa7 {[%clk 0:02:38]}  Nc5 {[%clk 0:02:09]} 12. Nd4 {[%clk 0:02:38]}  Bg6 {[%clk 0:02:09]} 13. b4 {[%clk 0:02:37]}  e5 {[%clk 0:01:38]} 14. Nxc6 {[%clk 0:02:36]}  bxc6 {[%clk 0:01:34]} 15. Bxc5 {[%clk 0:02:36]}  Bxc5 {[%clk 0:01:33]} 16. bxc5 {[%clk 0:02:37]}  dxc4 {[%clk 0:01:29]} 17. dxc4 {[%clk 0:02:32]}  Rab8 {[%clk 0:01:21]} 18. Bxc6 {[%clk 0:02:31]}  Rxb2 {[%clk 0:01:21]} 19. Bb5 {[%clk 0:02:16]}  Rc8 {[%clk 0:01:17]} 20. c6 {[%clk 0:02:16]}  h5 {[%clk 0:01:01]} 21. Rfd1 {[%clk 0:02:16]}  h4 {[%clk 0:00:58]} 22. Na4 {[%clk 0:02:15]}  Rc2 {[%clk 0:00:54]} 23. Nb6 {[%clk 0:02:15]}  Rc7 {[%clk 0:00:55]} 24. Nd5 {[%clk 0:02:15]}  Nxd5 {[%clk 0:00:42]} 25. cxd5 {[%clk 0:02:16]} 1-0

[Event "November 21 Late 2023"]
[Site "https://www.chess.com"]
[Date "2023.11.21"]
[Round "5"]
[White "Le, Quang Liem"]
[Black "Remizov, Yaroslav"]
[Result "1-0"]
[Board "7"]
[TimeControl "180+1"]
[WhiteFideId "12401137"]
[BlackFideId "34134015"]
[WhiteElo "2665"]
[BlackElo "2420"]
[WhiteTeam "VIE"]
[BlackTeam "RUS"]
[WhiteClock "0:01:14"]
[BlackClock "0:00:00"]

1. Nf3 {[%clk 0:03:00]}  d5 {[%clk 0:02:57]} 2. e3 {[%clk 0:03:01]}  Nf6 {[%clk 0:02:56]} 3. c4 {[%clk 0:03:01]}  e6 {[%clk 0:02:56]} 4. Nc3 {[%clk 0:03:01]}  b6 {[%clk 0:02:52]} 5. cxd5 {[%clk 0:02:57]}  exd5 {[%clk 0:02:52]} 6. g3 {[%clk 0:02:57]}  Nbd7 {[%clk 0:02:45]} 7. Bg2 {[%clk 0:02:50]}  c6 {[%clk 0:02:26]} 8. O-O {[%clk 0:02:45]}  Qc7 {[%clk 0:02:18]} 9. d3 {[%clk 0:02:42]}  Be7 {[%clk 0:02:13]} 10. e4 {[%clk 0:02:42]}  dxe4 {[%clk 0:02:11]} 11. dxe4 {[%clk 0:02:43]}  Ba6 {[%clk 0:02:05]} 12. Bf4 {[%clk 0:02:41]}  Qc8 {[%clk 0:01:49]} 13. Re1 {[%clk 0:02:39]}  O-O {[%clk 0:01:49]} 14. e5 {[%clk 0:02:35]}  Nd5 {[%clk 0:01:37]} 15. Nxd5 {[%clk 0:02:32]}  cxd5 {[%clk 0:01:37]} 16. Rc1 {[%clk 0:02:32]}  Qe8 {[%clk 0:01:17]} 17. e6 {[%clk 0:02:05]}  fxe6 {[%clk 0:01:13]} 18. Rxe6 {[%clk 0:02:05]}  Qf7 {[%clk 0:00:52]} 19. Qxd5 {[%clk 0:01:47]}  Nc5 {[%clk 0:00:53]} 20. Rxc5 {[%clk 0:01:38]}  Rad8 {[%clk 0:00:37]} 21. Ne5 {[%clk 0:01:26]}  Rxd5 {[%clk 0:00:25]} 22. Bxd5 {[%clk 0:01:27]}  Qxf4 {[%clk 0:00:03]} 23. Rxe7+ {[%clk 0:01:24]}  Kh8 {[%clk 0:00:03]} 24. gxf4 {[%clk 0:01:23]}  bxc5 {[%clk 0:00:03]} 25. Rxa7 {[%clk 0:01:19]}  Be2 {[%clk 0:00:03]} 26. Nf7+ {[%clk 0:01:17]}  Kg8 {[%clk 0:00:03]} 27. Ng5+ {[%clk 0:01:18]}  Kh8 {[%clk 0:00:03]} 28. Ne6 {[%clk 0:01:18]}  Rb8 {[%clk 0:00:02]} 29. Nxc5 {[%clk 0:01:16]}  h6 {[%clk 0:00:02]} 30. b3 {[%clk 0:01:16]}  Rd8 {[%clk 0:00:00]} 31. Ra8 {[%clk 0:01:14]} 1-0

[Event "November 21 Late 2023"]
[Site "https://www.chess.com"]
[Date "2023.11.21"]
[Round "5"]
[White "Grischuk, Alexander"]
[Black "Rustemov, Alexander"]
[Result "1-0"]
[Board "8"]
[TimeControl "180+1"]
[WhiteFideId "4126025"]
[BlackFideId "4119002"]
[WhiteElo "2699"]
[BlackElo "2868"]
[WhiteTeam "RUS"]
[BlackTeam "RUS"]
[WhiteClock "0:00:04"]
[BlackClock "0:00:00"]

1. d4 {[%clk 0:03:00]}  d5 {[%clk 0:02:59]} 2. c4 {[%clk 0:02:59]}  c6 {[%clk 0:02:59]} 3. Nc3 {[%clk 0:02:50]}  Nf6 {[%clk 0:02:59]} 4. e3 {[%clk 0:02:50]}  a6 {[%clk 0:02:59]} 5. Nf3 {[%clk 0:02:33]}  b5 {[%clk 0:02:57]} 6. b3 {[%clk 0:02:25]}  Bg4 {[%clk 0:02:56]} 7. a4 {[%clk 0:02:23]}  b4 {[%clk 0:02:51]} 8. Ne2 {[%clk 0:02:23]}  dxc4 {[%clk 0:02:51]} 9. bxc4 {[%clk 0:02:22]}  c5 {[%clk 0:02:51]} 10. Bb2 {[%clk 0:02:10]}  g6 {[%clk 0:02:37]} 11. dxc5 {[%clk 0:01:47]}  Qc8 {[%clk 0:02:30]} 12. Nf4 {[%clk 0:01:26]}  Bg7 {[%clk 0:02:25]} 13. h3 {[%clk 0:01:25]}  Bf5 {[%clk 0:01:46]} 14. Nd5 {[%clk 0:01:11]}  Qxc5 {[%clk 0:01:40]} 15. Bd4 {[%clk 0:01:10]}  Qc6 {[%clk 0:01:11]} 16. Nxb4 {[%clk 0:01:10]}  Qb7 {[%clk 0:00:58]} 17. Nd5 {[%clk 0:01:10]}  Nbd7 {[%clk 0:00:57]} 18. Be2 {[%clk 0:01:03]}  e6 {[%clk 0:00:46]} 19. Nxf6+ {[%clk 0:00:56]}  Nxf6 {[%clk 0:00:46]} 20. O-O {[%clk 0:00:44]}  O-O {[%clk 0:00:46]} 21. a5 {[%clk 0:00:38]}  Ne4 {[%clk 0:00:41]} 22. Bxg7 {[%clk 0:00:31]}  Kxg7 {[%clk 0:00:42]} 23. Qd4+ {[%clk 0:00:32]}  f6 {[%clk 0:00:41]} 24. Rfc1 {[%clk 0:00:28]}  Rab8 {[%clk 0:00:36]} 25. c5 {[%clk 0:00:24]}  e5 {[%clk 0:00:33]} 26. Qc4 {[%clk 0:00:21]}  Rfc8 {[%clk 0:00:34]} 27. c6 {[%clk 0:00:18]}  Qb5 {[%clk 0:00:25]} 28. g4 {[%clk 0:00:10]}  Be6 {[%clk 0:00:15]} 29. Qxb5 {[%clk 0:00:04]}  axb5 {[%clk 0:00:16]} 30. a6 {[%clk 0:00:04]}  b4 {[%clk 0:00:17]} 31. a7 {[%clk 0:00:04]}  Ra8 {[%clk 0:00:17]} 32. Ba6 {[%clk 0:00:03]}  Nc3 {[%clk 0:00:13]} 33. Bxc8 {[%clk 0:00:04]}  Bxc8 {[%clk 0:00:13]} 34. Rc2 {[%clk 0:00:03]}  Be6 {[%clk 0:00:12]} 35. Rb2 {[%clk 0:00:03]}  Nd5 {[%clk 0:00:10]} 36. Nd2 {[%clk 0:00:03]}  Kf7 {[%clk 0:00:09]} 37. e4 {[%clk 0:00:03]}  Ne7 {[%clk 0:00:01]} 38. Rxb4 {[%clk 0:00:04]}  Nxc6 {[%clk 0:00:02]} 39. Rb7+ {[%clk 0:00:04]}  Ke8 {[%clk 0:00:01]} 40. Rxh7 {[%clk 0:00:03]}  Bd7 {[%clk 0:00:01]} 41. Rh8+ {[%clk 0:00:03]}  Ke7 {[%clk 0:00:00]} 42. Rxa8 {[%clk 0:00:04]} 1-0

[Event "November 21 Late 2023"]
[Site "https://www.chess.com"]
[Date "2023.11.21"]
[Round "5"]
[White "Muradli, Mahammad"]
[Black "Taher, Yoseph Theolifus"]
[Result "1-0"]
[Board "9"]
[TimeControl "180+1"]
[WhiteFideId "13409301"]
[BlackFideId "7105347"]
[WhiteElo "2551"]
[BlackElo "2352"]
[WhiteTeam "AZE"]
[BlackTeam "INA"]
[WhiteClock "0:00:07"]
[BlackClock "0:00:37"]

1. g3 {[%clk 0:02:56]}  c5 {[%clk 0:02:53]} 2. Bg2 {[%clk 0:02:52]}  Nc6 {[%clk 0:02:53]} 3. c4 {[%clk 0:02:52]}  g6 {[%clk 0:02:52]} 4. Nc3 {[%clk 0:02:51]}  Bg7 {[%clk 0:02:53]} 5. Nf3 {[%clk 0:02:52]}  d6 {[%clk 0:02:50]} 6. O-O {[%clk 0:02:52]}  Bf5 {[%clk 0:02:50]} 7. e3 {[%clk 0:02:45]}  Qc8 {[%clk 0:02:49]} 8. d4 {[%clk 0:02:42]}  Bh3 {[%clk 0:02:49]} 9. Re1 {[%clk 0:02:36]}  Bxg2 {[%clk 0:02:49]} 10. Kxg2 {[%clk 0:02:37]}  Nf6 {[%clk 0:02:49]} 11. d5 {[%clk 0:02:35]}  Nb8 {[%clk 0:02:42]} 12. e4 {[%clk 0:02:36]}  O-O {[%clk 0:02:37]} 13. e5 {[%clk 0:02:36]}  dxe5 {[%clk 0:02:37]} 14. Nxe5 {[%clk 0:02:36]}  Re8 {[%clk 0:02:30]} 15. Qf3 {[%clk 0:02:33]}  Nbd7 {[%clk 0:02:28]} 16. Bf4 {[%clk 0:02:29]}  a6 {[%clk 0:02:28]} 17. Re2 {[%clk 0:02:18]}  Nxe5 {[%clk 0:02:21]} 18. Bxe5 {[%clk 0:02:18]}  Qg4 {[%clk 0:02:21]} 19. Rae1 {[%clk 0:01:41]}  Qxf3+ {[%clk 0:01:41]} 20. Kxf3 {[%clk 0:01:42]}  Kf8 {[%clk 0:01:41]} 21. Na4 {[%clk 0:01:37]}  b5 {[%clk 0:01:28]} 22. Nxc5 {[%clk 0:01:05]}  bxc4 {[%clk 0:01:27]} 23. d6 {[%clk 0:00:55]}  e6 {[%clk 0:00:58]} 24. d7 {[%clk 0:00:22]}  Red8 {[%clk 0:00:53]} 25. Rd1 {[%clk 0:00:12]}  Nd5 {[%clk 0:00:50]} 26. Bd6+ {[%clk 0:00:07]}  Kg8 {[%clk 0:00:49]} 27. Rxd5 {[%clk 0:00:08]}  exd5 {[%clk 0:00:47]} 28. Bc7 {[%clk 0:00:08]}  Bf6 {[%clk 0:00:40]} 29. Bxd8 {[%clk 0:00:06]}  Rxd8 {[%clk 0:00:41]} 30. Re8+ {[%clk 0:00:06]}  Kg7 {[%clk 0:00:41]} 31. Rxd8 {[%clk 0:00:07]}  Bxd8 {[%clk 0:00:40]} 32. Nb7 {[%clk 0:00:08]}  Be7 {[%clk 0:00:37]} 33. d8=Q {[%clk 0:00:07]} 1-0

[Event "November 21 Late 2023"]
[Site "https://www.chess.com"]
[Date "2023.11.21"]
[Round "5"]
[White "Bortnyk, Mykola"]
[Black "Vasquez Schroeder, Rodrigo"]
[Result "1-0"]
[Board "11"]
[TimeControl "180+1"]
[WhiteFideId "14120836"]
[BlackFideId "3400042"]
[WhiteElo "2592"]
[BlackElo "2582"]
[WhiteTeam "UKR"]
[BlackTeam "CHI"]
[WhiteClock "0:00:07"]
[BlackClock "0:00:05"]

1. e4 {[%clk 0:02:25]}  c6 {[%clk 0:02:58]} 2. d4 {[%clk 0:02:25]}  d5 {[%clk 0:02:58]} 3. exd5 {[%clk 0:02:26]}  cxd5 {[%clk 0:02:58]} 4. c4 {[%clk 0:02:27]}  Nf6 {[%clk 0:02:57]} 5. Nc3 {[%clk 0:02:27]}  e6 {[%clk 0:02:57]} 6. Nf3 {[%clk 0:02:27]}  Bb4 {[%clk 0:02:56]} 7. cxd5 {[%clk 0:02:28]}  Nxd5 {[%clk 0:02:56]} 8. Bd2 {[%clk 0:02:28]}  Nc6 {[%clk 0:02:56]} 9. Bd3 {[%clk 0:02:28]}  O-O {[%clk 0:02:55]} 10. O-O {[%clk 0:02:29]}  Be7 {[%clk 0:02:50]} 11. a3 {[%clk 0:02:28]}  Nf6 {[%clk 0:02:43]} 12. Be3 {[%clk 0:02:23]}  b6 {[%clk 0:02:42]} 13. Qe2 {[%clk 0:02:23]}  Bb7 {[%clk 0:02:41]} 14. Rad1 {[%clk 0:02:24]}  Rc8 {[%clk 0:02:41]} 15. Rfe1 {[%clk 0:02:22]}  Qd6 {[%clk 0:02:35]} 16. Bb1 {[%clk 0:02:21]}  Rfd8 {[%clk 0:02:34]} 17. Bg5 {[%clk 0:02:12]}  g6 {[%clk 0:02:25]} 18. Bh4 {[%clk 0:02:11]}  Nh5 {[%clk 0:02:19]} 19. Ne4 {[%clk 0:02:06]}  Qc7 {[%clk 0:02:17]} 20. Neg5 {[%clk 0:02:02]}  Bf6 {[%clk 0:02:09]} 21. Nxe6 {[%clk 0:01:42]}  fxe6 {[%clk 0:02:02]} 22. Qxe6+ {[%clk 0:01:43]}  Qf7 {[%clk 0:01:49]} 23. Ba2 {[%clk 0:01:26]}  Qxe6 {[%clk 0:01:46]} 24. Bxe6+ {[%clk 0:01:20]}  Kf8 {[%clk 0:01:38]} 25. Bxc8 {[%clk 0:01:07]}  Bxc8 {[%clk 0:01:37]} 26. d5 {[%clk 0:01:06]}  Na5 {[%clk 0:01:28]} 27. Bxf6 {[%clk 0:00:58]}  Nxf6 {[%clk 0:01:28]} 28. b4 {[%clk 0:00:48]}  Nc4 {[%clk 0:01:27]} 29. Rd4 {[%clk 0:00:48]}  Nd6 {[%clk 0:01:26]} 30. Rc1 {[%clk 0:00:28]}  Nf5 {[%clk 0:01:18]} 31. Rdd1 {[%clk 0:00:27]}  Bb7 {[%clk 0:01:16]} 32. Rc7 {[%clk 0:00:25]}  Bxd5 {[%clk 0:00:58]} 33. Ng5 {[%clk 0:00:25]}  Re8 {[%clk 0:00:51]} 34. h3 {[%clk 0:00:22]}  h6 {[%clk 0:00:46]} 35. Nh7+ {[%clk 0:00:19]}  Nxh7 {[%clk 0:00:46]} 36. Rxd5 {[%clk 0:00:19]}  Nf6 {[%clk 0:00:44]} 37. Rd1 {[%clk 0:00:18]}  Re7 {[%clk 0:00:44]} 38. Rd8+ {[%clk 0:00:17]}  Ne8 {[%clk 0:00:41]} 39. Rxe7 {[%clk 0:00:13]}  Kxe7 {[%clk 0:00:38]} 40. Ra8 {[%clk 0:00:13]}  b5 {[%clk 0:00:34]} 41. Rxa7+ {[%clk 0:00:13]}  Ke6 {[%clk 0:00:33]} 42. a4 {[%clk 0:00:12]}  bxa4 {[%clk 0:00:33]} 43. Rxa4 {[%clk 0:00:13]}  Nfd6 {[%clk 0:00:34]} 44. Ra1 {[%clk 0:00:12]}  Nc7 {[%clk 0:00:33]} 45. f3 {[%clk 0:00:10]}  Nd5 {[%clk 0:00:33]} 46. Re1+ {[%clk 0:00:09]}  Kd7 {[%clk 0:00:33]} 47. Rb1 {[%clk 0:00:10]}  Kc6 {[%clk 0:00:33]} 48. Kh2 {[%clk 0:00:10]}  Kb5 {[%clk 0:00:30]} 49. h4 {[%clk 0:00:10]}  Nxb4 {[%clk 0:00:26]} 50. Re1 {[%clk 0:00:11]}  Nf5 {[%clk 0:00:22]} 51. h5 {[%clk 0:00:06]}  Nd3 {[%clk 0:00:19]} 52. Rb1+ {[%clk 0:00:07]}  Kc4 {[%clk 0:00:17]} 53. hxg6 {[%clk 0:00:08]}  Ne5 {[%clk 0:00:15]} 54. Rb6 {[%clk 0:00:08]}  Kd5 {[%clk 0:00:13]} 55. Rf6 {[%clk 0:00:08]}  Ne7 {[%clk 0:00:11]} 56. g7 {[%clk 0:00:08]}  N5c6 {[%clk 0:00:10]} 57. Rf8 {[%clk 0:00:06]}  Ke6 {[%clk 0:00:05]} 58. g8=Q+ {[%clk 0:00:07]} 1-0

[Event "November 21 Late 2023"]
[Site "https://www.chess.com"]
[Date "2023.11.21"]
[Round "5"]
[White "Krysa, Leandro"]
[Black "Zhigalko, Sergei"]
[Result "1/2-1/2"]
[Board "14"]
[TimeControl "180+1"]
[WhiteFideId "116807"]
[BlackFideId "13502956"]
[WhiteElo "2495"]
[BlackElo "2616"]
[WhiteTeam "ARG"]
[BlackTeam "BLR"]
[WhiteClock "0:00:58"]
[BlackClock "0:00:04"]

1. e4 {[%clk 0:03:00]}  c5 {[%clk 0:02:59]} 2. Nf3 {[%clk 0:03:00]}  Nc6 {[%clk 0:03:00]} 3. Bb5 {[%clk 0:02:59]}  Nf6 {[%clk 0:03:00]} 4. d3 {[%clk 0:02:54]}  Qa5+ {[%clk 0:03:00]} 5. Nc3 {[%clk 0:02:53]}  Nd4 {[%clk 0:03:01]} 6. Bc4 {[%clk 0:02:52]}  b5 {[%clk 0:03:00]} 7. Bb3 {[%clk 0:02:52]}  Nxb3 {[%clk 0:03:00]} 8. cxb3 {[%clk 0:02:52]}  d6 {[%clk 0:03:01]} 9. O-O {[%clk 0:02:52]}  e6 {[%clk 0:03:01]} 10. d4 {[%clk 0:02:45]}  b4 {[%clk 0:03:01]} 11. e5 {[%clk 0:02:43]}  bxc3 {[%clk 0:03:02]} 12. exf6 {[%clk 0:02:43]}  gxf6 {[%clk 0:03:02]} 13. bxc3 {[%clk 0:02:42]}  Qxc3 {[%clk 0:02:52]} 14. Bd2 {[%clk 0:02:38]}  Qd3 {[%clk 0:02:51]} 15. dxc5 {[%clk 0:02:36]}  dxc5 {[%clk 0:02:46]} 16. Ba5 {[%clk 0:02:33]}  Ba6 {[%clk 0:02:33]} 17. Re1 {[%clk 0:02:25]}  Rg8 {[%clk 0:02:17]} 18. Qxd3 {[%clk 0:02:20]}  Bxd3 {[%clk 0:02:18]} 19. Rad1 {[%clk 0:02:21]}  Ba6 {[%clk 0:02:07]} 20. Nd2 {[%clk 0:02:20]}  f5 {[%clk 0:02:00]} 21. f3 {[%clk 0:02:06]}  Be7 {[%clk 0:01:02]} 22. Nc4 {[%clk 0:02:02]}  Bxc4 {[%clk 0:00:58]} 23. bxc4 {[%clk 0:02:03]}  Rb8 {[%clk 0:00:59]} 24. Bc3 {[%clk 0:01:53]}  Rb6 {[%clk 0:00:29]} 25. Rd3 {[%clk 0:01:50]}  Rd6 {[%clk 0:00:22]} 26. Rxd6 {[%clk 0:01:43]}  Bxd6 {[%clk 0:00:23]} 27. Rb1 {[%clk 0:01:44]}  Kd7 {[%clk 0:00:16]} 28. Rb7+ {[%clk 0:01:43]}  Kc6 {[%clk 0:00:13]} 29. Rxf7 {[%clk 0:01:40]}  Rb8 {[%clk 0:00:09]} 30. Rxa7 {[%clk 0:01:35]}  Rb1+ {[%clk 0:00:08]} 31. Kf2 {[%clk 0:01:36]}  Bxh2 {[%clk 0:00:04]} 32. Rxh7 {[%clk 0:01:28]}  Rc1 {[%clk 0:00:04]} 33. Rxh2 {[%clk 0:01:13]}  Rxc3 {[%clk 0:00:04]} 34. g4 {[%clk 0:01:14]}  Rxc4 {[%clk 0:00:01]} 35. g5 {[%clk 0:01:12]}  Rc2+ {[%clk 0:00:01]} 36. Kg3 {[%clk 0:01:13]}  Rxh2 {[%clk 0:00:02]} 37. Kxh2 {[%clk 0:01:13]}  Kd6 {[%clk 0:00:02]} 38. Kg2 {[%clk 0:01:08]}  c4 {[%clk 0:00:02]} 39. Kf2 {[%clk 0:01:08]}  e5 {[%clk 0:00:02]} 40. a4 {[%clk 0:01:03]}  c3 {[%clk 0:00:02]} 41. Ke2 {[%clk 0:01:03]}  f4 {[%clk 0:00:02]} 42. g6 {[%clk 0:01:02]}  Ke7 {[%clk 0:00:02]} 43. g7 {[%clk 0:01:02]}  Kf7 {[%clk 0:00:02]} 44. g8=Q+ {[%clk 0:01:02]}  Kxg8 {[%clk 0:00:02]} 45. a5 {[%clk 0:01:03]}  e4 {[%clk 0:00:03]} 46. a6 {[%clk 0:00:58]}  exf3+ {[%clk 0:00:02]} 47. Kxf3 {[%clk 0:00:57]}  c2 {[%clk 0:00:02]} 48. a7 {[%clk 0:00:57]}  c1=Q {[%clk 0:00:03]} 49. a8=Q+ {[%clk 0:00:58]}  Kf7 {[%clk 0:00:03]} 50. Qe4 {[%clk 0:00:57]}  Qe3+ {[%clk 0:00:03]} 51. Qxe3 {[%clk 0:00:57]}  fxe3 {[%clk 0:00:04]} 52. Kxe3 {[%clk 0:00:58]} 1/2-1/2

[Event "November 21 Late 2023"]
[Site "https://www.chess.com"]
[Date "2023.11.21"]
[Round "5"]
[White "Nazari, Arad"]
[Black "Martinez Alcantara, Jose Eduardo"]
[Result "0-1"]
[Board "16"]
[TimeControl "180+1"]
[WhiteFideId "12577324"]
[BlackFideId "3805662"]
[WhiteElo "2100"]
[BlackElo "2703"]
[WhiteTeam "IRI"]
[BlackTeam "PER"]
[WhiteClock "0:00:00"]
[BlackClock "0:00:35"]

1. e4 {[%clk 0:02:50]}  c5 {[%clk 0:03:00]} 2. Nf3 {[%clk 0:02:51]}  d6 {[%clk 0:03:00]} 3. d4 {[%clk 0:02:44]}  cxd4 {[%clk 0:03:01]} 4. Nxd4 {[%clk 0:02:45]}  a6 {[%clk 0:03:02]} 5. Nc3 {[%clk 0:02:45]}  e6 {[%clk 0:03:03]} 6. g4 {[%clk 0:02:40]}  b5 {[%clk 0:03:02]} 7. Be3 {[%clk 0:02:36]}  Bb7 {[%clk 0:03:03]} 8. a3 {[%clk 0:02:33]}  Ne7 {[%clk 0:03:02]} 9. Bg2 {[%clk 0:02:27]}  Nec6 {[%clk 0:03:01]} 10. Qd2 {[%clk 0:02:18]}  Nxd4 {[%clk 0:03:01]} 11. Bxd4 {[%clk 0:02:18]}  Nc6 {[%clk 0:03:02]} 12. Be3 {[%clk 0:02:18]}  Ne5 {[%clk 0:02:56]} 13. Qe2 {[%clk 0:02:18]}  Rc8 {[%clk 0:02:53]} 14. O-O {[%clk 0:01:54]}  Nc4 {[%clk 0:02:49]} 15. Bc1 {[%clk 0:01:53]}  Be7 {[%clk 0:02:48]} 16. a4 {[%clk 0:01:52]}  b4 {[%clk 0:02:17]} 17. Nd1 {[%clk 0:01:48]}  a5 {[%clk 0:02:10]} 18. b3 {[%clk 0:01:41]}  Ne5 {[%clk 0:02:09]} 19. f4 {[%clk 0:01:36]}  Nd7 {[%clk 0:02:09]} 20. Bb2 {[%clk 0:01:26]}  Qb6+ {[%clk 0:02:04]} 21. Qf2 {[%clk 0:00:58]}  Rxc2 {[%clk 0:01:59]} 22. Qxb6 {[%clk 0:00:58]}  Nxb6 {[%clk 0:02:00]} 23. Bd4 {[%clk 0:00:59]}  Bf6 {[%clk 0:01:34]} 24. Bxf6 {[%clk 0:00:50]}  gxf6 {[%clk 0:01:35]} 25. Rf2 {[%clk 0:00:48]}  Rc5 {[%clk 0:01:31]} 26. Rd2 {[%clk 0:00:41]}  Ke7 {[%clk 0:01:13]} 27. e5 {[%clk 0:00:31]}  Bxg2 {[%clk 0:01:14]} 28. exd6+ {[%clk 0:00:31]}  Kd7 {[%clk 0:01:15]} 29. Kxg2 {[%clk 0:00:31]}  Nd5 {[%clk 0:01:16]} 30. Rd4 {[%clk 0:00:17]}  h5 {[%clk 0:01:09]} 31. gxh5 {[%clk 0:00:16]}  Rc2+ {[%clk 0:01:04]} 32. Nf2 {[%clk 0:00:12]}  Rxh5 {[%clk 0:01:01]} 33. Rad1 {[%clk 0:00:09]}  Ne3+ {[%clk 0:01:01]} 34. Kf3 {[%clk 0:00:08]}  Nxd1 {[%clk 0:00:59]} 35. Rxd1 {[%clk 0:00:08]}  f5 {[%clk 0:00:40]} 36. Kg3 {[%clk 0:00:02]}  Rc3+ {[%clk 0:00:38]} 37. Rd3 {[%clk 0:00:03]}  f6 {[%clk 0:00:34]} 38. h4 {[%clk 0:00:02]}  e5 {[%clk 0:00:35]} 39. Kh3 {[%clk 0:00:00]}  e4 {[%clk 0:00:35]} 0-1

[Event "November 21 Late 2023"]
[Site "https://www.chess.com"]
[Date "2023.11.21"]
[Round "5"]
[White "Korchmar, Vasiliy"]
[Black "Nihal Sarin"]
[Result "0-1"]
[Board "17"]
[TimeControl "180+1"]
[WhiteFideId "24131750"]
[BlackFideId "25092340"]
[WhiteElo "2372"]
[BlackElo "2689"]
[WhiteTeam "RUS"]
[BlackTeam "IND"]
[WhiteClock "0:00:00"]
[BlackClock "0:02:58"]

1. e4 {[%clk 0:03:00]}  c5 {[%clk 0:02:58]} 2. d4 {[%clk 0:03:00]}  cxd4 {[%clk 0:02:58]} 3. Qxd4 {[%clk 0:03:01]}  Nc6 {[%clk 0:02:58]} 4. Qd3 {[%clk 0:03:02]}  Nf6 {[%clk 0:02:59]} 5. Nc3 {[%clk 0:03:03]}  d6 {[%clk 0:02:59]} 6. Nf3 {[%clk 0:03:03]}  g6 {[%clk 0:03:00]} 7. Be2 {[%clk 0:03:04]}  Bg7 {[%clk 0:03:01]} 8. O-O {[%clk 0:03:05]}  O-O {[%clk 0:03:02]} 9. Nd5 {[%clk 0:03:06]}  Bg4 {[%clk 0:03:01]} 10. c3 {[%clk 0:03:06]}  Nd7 {[%clk 0:03:01]} 11. Rd1 {[%clk 0:02:59]}  Rc8 {[%clk 0:03:01]} 12. Bg5 {[%clk 0:02:58]}  h6 {[%clk 0:03:01]} 13. Bh4 {[%clk 0:02:57]}  Bxf3 {[%clk 0:03:02]} 14. Qxf3 {[%clk 0:02:55]}  Nce5 {[%clk 0:03:02]} 15. Qe3 {[%clk 0:02:50]}  Nc6 {[%clk 0:03:02]} 16. h3 {[%clk 0:02:36]}  Re8 {[%clk 0:03:02]} 17. a4 {[%clk 0:02:27]}  a6 {[%clk 0:03:03]} 18. Bg4 {[%clk 0:02:17]}  Nce5 {[%clk 0:03:03]} 19. Be2 {[%clk 0:02:11]}  Nc4 {[%clk 0:03:02]} 20. Bxc4 {[%clk 0:02:09]}  Rxc4 {[%clk 0:03:03]} 21. Qe2 {[%clk 0:02:01]}  Rc8 {[%clk 0:03:03]} 22. a5 {[%clk 0:01:48]}  Ne5 {[%clk 0:03:03]} 23. Nb6 {[%clk 0:01:42]}  Rb8 {[%clk 0:03:03]} 24. f4 {[%clk 0:01:40]}  Nc6 {[%clk 0:03:03]} 25. e5 {[%clk 0:01:33]}  Nxa5 {[%clk 0:03:03]} 26. Nd5 {[%clk 0:01:25]}  Nc6 {[%clk 0:03:03]} 27. e6 {[%clk 0:01:03]}  Qc8 {[%clk 0:03:03]} 28. f5 {[%clk 0:00:56]}  gxf5 {[%clk 0:03:03]} 29. exf7+ {[%clk 0:00:56]}  Kxf7 {[%clk 0:03:03]} 30. Qh5+ {[%clk 0:00:53]}  Kg8 {[%clk 0:03:04]} 31. Rf1 {[%clk 0:00:50]}  Qe6 {[%clk 0:03:03]} 32. Rxf5 {[%clk 0:00:47]}  Rf8 {[%clk 0:03:02]} 33. Rxf8+ {[%clk 0:00:36]}  Rxf8 {[%clk 0:03:03]} 34. Re1 {[%clk 0:00:34]}  Be5 {[%clk 0:03:04]} 35. Ne3 {[%clk 0:00:24]}  Kh7 {[%clk 0:03:02]} 36. Ng4 {[%clk 0:00:18]}  Rf5 {[%clk 0:03:02]} 37. Qe8 {[%clk 0:00:15]}  Qf7 {[%clk 0:03:02]} 38. Qc8 {[%clk 0:00:11]}  h5 {[%clk 0:03:02]} 39. Nxe5 {[%clk 0:00:08]}  Nxe5 {[%clk 0:03:03]} 40. Qxb7 {[%clk 0:00:08]}  Qg6 {[%clk 0:03:01]} 41. Qxe7+ {[%clk 0:00:05]}  Rf7 {[%clk 0:03:02]} 42. Qg5 {[%clk 0:00:06]}  Qxg5 {[%clk 0:03:02]} 43. Bxg5 {[%clk 0:00:06]}  Kg6 {[%clk 0:03:03]} 44. Bh4 {[%clk 0:00:04]}  Rb7 {[%clk 0:03:03]} 45. Bg3 {[%clk 0:00:04]}  Nc4 {[%clk 0:03:02]} 46. Re4 {[%clk 0:00:02]}  Nxb2 {[%clk 0:03:01]} 47. Re6+ {[%clk 0:00:01]}  Kf5 {[%clk 0:03:01]} 48. Rxd6 {[%clk 0:00:02]}  Ra7 {[%clk 0:03:00]} 49. Rd5+ {[%clk 0:00:01]}  Kg6 {[%clk 0:02:59]} 50. Ra5 {[%clk 0:00:01]}  Nc4 {[%clk 0:02:59]} 51. Ra4 {[%clk 0:00:02]}  Nd2 {[%clk 0:03:00]} 52. Bf4 {[%clk 0:00:01]}  Nb1 {[%clk 0:02:59]} 53. Be3 {[%clk 0:00:02]}  Nxc3 {[%clk 0:02:58]} 54. Bxa7 {[%clk 0:00:00]}  Nxa4 {[%clk 0:02:58]} 0-1